[Event "Titled Tuesday Blitz March 14 Late 2023"]
[White "Karas, Marek"]
[Black "Gatterer, Florian"]
[WhiteFideId "14928558"]
[BlackFideId "811688"]
[WhiteElo "2233"]
[BlackElo "2221"]
[Result "1/2-1/2"]
[Round "08"]
[TimeControl "180+2"]
[Date "2023.03.14"]
[WhiteClock "0:00:14"]
[BlackClock "0:00:16"]

1. Nf3 {[%clk 0:02:53]}  d5 {[%clk 0:02:58]} 2. g3 {[%clk 0:02:53]}  c5 {[%clk 0:02:57]} 3. Bg2 {[%clk 0:02:54]}  Nf6 {[%clk 0:02:58]} 4. O-O {[%clk 0:02:54]}  Nc6 {[%clk 0:02:58]} 5. d4 {[%clk 0:02:55]}  e6 {[%clk 0:02:58]} 6. c4 {[%clk 0:02:55]}  dxc4 {[%clk 0:02:58]} 7. dxc5 {[%clk 0:02:54]}  Qxd1 {[%clk 0:02:58]} 8. Rxd1 {[%clk 0:02:54]}  Bxc5 {[%clk 0:02:58]} 9. Nbd2 {[%clk 0:02:55]}  c3 {[%clk 0:02:58]} 10. bxc3 {[%clk 0:02:55]}  O-O {[%clk 0:02:58]} 11. Nb3 {[%clk 0:02:53]}  Be7 {[%clk 0:02:57]} 12. Bf4 {[%clk 0:02:48]}  Nd5 {[%clk 0:02:51]} 13. c4 {[%clk 0:02:48]}  Nxf4 {[%clk 0:02:44]} 14. gxf4 {[%clk 0:02:48]}  a5 {[%clk 0:02:31]} 15. e3 {[%clk 0:02:45]}  a4 {[%clk 0:02:28]} 16. Nbd4 {[%clk 0:02:45]}  Bd7 {[%clk 0:02:13]} 17. Rab1 {[%clk 0:02:40]}  Rab8 {[%clk 0:01:57]} 18. Nxc6 {[%clk 0:02:34]}  Bxc6 {[%clk 0:01:56]} 19. Ne5 {[%clk 0:02:35]}  Bxg2 {[%clk 0:01:35]} 20. Kxg2 {[%clk 0:02:35]}  Rfc8 {[%clk 0:01:09]} 21. Rd7 {[%clk 0:02:30]}  Bf6 {[%clk 0:01:10]} 22. Rbxb7 {[%clk 0:02:17]}  Rxb7 {[%clk 0:01:01]} 23. Rxb7 {[%clk 0:02:17]}  Bxe5 {[%clk 0:01:01]} 24. fxe5 {[%clk 0:02:18]}  g5 {[%clk 0:00:56]} 25. Rb4 {[%clk 0:02:16]}  a3 {[%clk 0:00:52]} 26. Kf3 {[%clk 0:02:14]}  Kg7 {[%clk 0:00:42]} 27. Ke4 {[%clk 0:02:13]}  Kg6 {[%clk 0:00:40]} 28. f4 {[%clk 0:02:04]}  h6 {[%clk 0:00:35]} 29. Ra4 {[%clk 0:01:31]}  g4 {[%clk 0:00:34]} 30. Kd3 {[%clk 0:01:28]}  Rd8+ {[%clk 0:00:31]} 31. Kc2 {[%clk 0:01:26]}  Kf5 {[%clk 0:00:27]} 32. Rxa3 {[%clk 0:01:23]}  Ke4 {[%clk 0:00:27]} 33. Ra7 {[%clk 0:01:21]}  Rf8 {[%clk 0:00:24]} 34. Kd2 {[%clk 0:01:13]}  h5 {[%clk 0:00:24]} 35. Ke2 {[%clk 0:01:12]}  h4 {[%clk 0:00:21]} 36. c5 {[%clk 0:01:04]}  Rb8 {[%clk 0:00:19]} 37. Ra4+ {[%clk 0:00:56]}  Kd5 {[%clk 0:00:19]} 38. Rd4+ {[%clk 0:00:39]}  Kxc5 {[%clk 0:00:19]} 39. Rd2 {[%clk 0:00:40]}  Rb4 {[%clk 0:00:15]} 40. Kf2 {[%clk 0:00:36]}  Ra4 {[%clk 0:00:15]} 41. Kg2 {[%clk 0:00:28]}  Ra3 {[%clk 0:00:15]} 42. Kf2 {[%clk 0:00:24]}  Kc6 {[%clk 0:00:15]} 43. Rb2 {[%clk 0:00:23]}  Kc5 {[%clk 0:00:15]} 44. Ke2 {[%clk 0:00:20]}  Kd5 {[%clk 0:00:15]} 45. Rd2+ {[%clk 0:00:14]}  Ke4 {[%clk 0:00:15]} 46. Rd4+ {[%clk 0:00:14]}  Kf5 {[%clk 0:00:15]} 47. Rd2 {[%clk 0:00:13]}  Ke4 {[%clk 0:00:16]} 48. Rd4+ {[%clk 0:00:13]}  Kf5 {[%clk 0:00:16]} 49. Rd2 {[%clk 0:00:14]}  Ke4 {[%clk 0:00:16]} 1/2-1/2


[Site "https://www.chess.com"]

[Event "Titled Tuesday Blitz March 14 Late 2023"]
[White "Fan_Of_Chucky"]
[Black "Zamorano, Jorge"]
[BlackFideId "173770"]
[WhiteElo "2342"]
[BlackElo "2331"]
[Result "1/2-1/2"]
[Round "08"]
[TimeControl "180+2"]
[Date "2023.03.14"]
[WhiteClock "0:00:03"]
[BlackClock "0:00:04"]

1. d4 {[%clk 0:02:54]}  Nf6 {[%clk 0:02:56]} 2. c4 {[%clk 0:02:54]}  e6 {[%clk 0:02:57]} 3. Nf3 {[%clk 0:02:54]}  b6 {[%clk 0:02:57]} 4. a3 {[%clk 0:02:53]}  Bb7 {[%clk 0:02:57]} 5. Nc3 {[%clk 0:02:51]}  d5 {[%clk 0:02:58]} 6. cxd5 {[%clk 0:02:51]}  Nxd5 {[%clk 0:02:58]} 7. e4 {[%clk 0:02:51]}  Nxc3 {[%clk 0:02:58]} 8. bxc3 {[%clk 0:02:52]}  Bxe4 {[%clk 0:02:56]} 9. Ne5 {[%clk 0:02:26]}  Bd6 {[%clk 0:02:41]} 10. Qg4 {[%clk 0:02:23]}  Bg6 {[%clk 0:02:09]} 11. Bb5+ {[%clk 0:02:19]}  Kf8 {[%clk 0:02:02]} 12. f4 {[%clk 0:02:13]}  Bxe5 {[%clk 0:01:29]} 13. fxe5 {[%clk 0:02:11]}  Qd5 {[%clk 0:01:30]} 14. a4 {[%clk 0:02:08]}  Qe4+ {[%clk 0:01:29]} 15. Qxe4 {[%clk 0:02:05]}  Bxe4 {[%clk 0:01:28]} 16. Ba3+ {[%clk 0:02:04]}  Kg8 {[%clk 0:01:28]} 17. O-O {[%clk 0:02:03]}  Bc6 {[%clk 0:01:00]} 18. Rf2 {[%clk 0:01:57]}  Bxb5 {[%clk 0:00:54]} 19. axb5 {[%clk 0:01:57]}  Nd7 {[%clk 0:00:55]} 20. Raf1 {[%clk 0:01:49]}  f5 {[%clk 0:00:55]} 21. exf6 {[%clk 0:01:47]}  gxf6 {[%clk 0:00:55]} 22. Be7 {[%clk 0:01:45]}  f5 {[%clk 0:00:55]} 23. d5 {[%clk 0:01:43]}  Re8 {[%clk 0:00:48]} 24. dxe6 {[%clk 0:01:37]}  Rxe7 {[%clk 0:00:37]} 25. exd7 {[%clk 0:01:38]}  Rxd7 {[%clk 0:00:37]} 26. Rxf5 {[%clk 0:01:36]}  h6 {[%clk 0:00:25]} 27. Ra1 {[%clk 0:01:11]}  Kg7 {[%clk 0:00:19]} 28. Rxa7 {[%clk 0:01:10]}  Re8 {[%clk 0:00:20]} 29. h3 {[%clk 0:01:07]}  Re3 {[%clk 0:00:19]} 30. c4 {[%clk 0:01:01]}  Rc3 {[%clk 0:00:17]} 31. Rf4 {[%clk 0:01:00]}  h5 {[%clk 0:00:15]} 32. Kh2 {[%clk 0:00:57]}  Rc2 {[%clk 0:00:15]} 33. Kg3 {[%clk 0:00:48]}  Kg6 {[%clk 0:00:15]} 34. Ra8 {[%clk 0:00:44]}  Rd3+ {[%clk 0:00:11]} 35. Kh2 {[%clk 0:00:39]}  Kg7 {[%clk 0:00:08]} 36. Rc8 {[%clk 0:00:33]}  Rdd2 {[%clk 0:00:08]} 37. Rxc7+ {[%clk 0:00:33]}  Kg8 {[%clk 0:00:08]} 38. Rc8+ {[%clk 0:00:30]}  Kg7 {[%clk 0:00:08]} 39. Rc7+ {[%clk 0:00:30]}  Kg6 {[%clk 0:00:09]} 40. Rc6+ {[%clk 0:00:22]}  Kg5 {[%clk 0:00:09]} 41. Re4 {[%clk 0:00:12]}  Rxg2+ {[%clk 0:00:09]} 42. Kh1 {[%clk 0:00:12]}  Rh2+ {[%clk 0:00:09]} 43. Kg1 {[%clk 0:00:12]}  Rhd2 {[%clk 0:00:03]} 44. Re1 {[%clk 0:00:09]}  Kh4 {[%clk 0:00:02]} 45. Rxb6 {[%clk 0:00:08]}  Rxc4 {[%clk 0:00:02]} 46. Rbe6 {[%clk 0:00:05]}  Rcc2 {[%clk 0:00:02]} 47. R6e4+ {[%clk 0:00:04]}  Kg5 {[%clk 0:00:02]} 48. Re5+ {[%clk 0:00:05]}  Kg6 {[%clk 0:00:02]} 49. Re6+ {[%clk 0:00:05]}  Kg5 {[%clk 0:00:02]} 50. R6e5+ {[%clk 0:00:06]}  Kg6 {[%clk 0:00:03]} 51. b6 {[%clk 0:00:04]}  Rb2 {[%clk 0:00:03]} 52. Re6+ {[%clk 0:00:04]}  Kg5 {[%clk 0:00:03]} 53. R6e5+ {[%clk 0:00:04]}  Kh4 {[%clk 0:00:03]} 54. R5e4+ {[%clk 0:00:04]}  Kg5 {[%clk 0:00:03]} 55. Re5+ {[%clk 0:00:05]}  Kg6 {[%clk 0:00:03]} 56. Re6+ {[%clk 0:00:04]}  Kg5 {[%clk 0:00:04]} 57. R6e5+ {[%clk 0:00:03]} 1/2-1/2


[Site "https://www.chess.com"]

[Event "Titled Tuesday Blitz March 14 Late 2023"]
[White "Rodrigues, Tiago Pereira"]
[Black "Blanco Acevedo, Cristobal Jose"]
[WhiteFideId "2101203"]
[BlackFideId "3900525"]
[WhiteElo "2168"]
[BlackElo "2278"]
[Result "0-1"]
[Round "08"]
[TimeControl "180+2"]
[Date "2023.03.14"]
[WhiteClock "0:00:50"]
[BlackClock "0:00:29"]

1. e4 {[%clk 0:03:00]}  c5 {[%clk 0:02:59]} 2. Nf3 {[%clk 0:02:59]}  Nc6 {[%clk 0:02:59]} 3. d3 {[%clk 0:02:59]}  g6 {[%clk 0:02:59]} 4. Nbd2 {[%clk 0:02:59]}  Bg7 {[%clk 0:02:59]} 5. Be2 {[%clk 0:02:59]}  e5 {[%clk 0:02:57]} 6. a4 {[%clk 0:02:57]}  d5 {[%clk 0:02:56]} 7. exd5 {[%clk 0:02:57]}  Qxd5 {[%clk 0:02:55]} 8. Nc4 {[%clk 0:02:57]}  Nge7 {[%clk 0:02:55]} 9. O-O {[%clk 0:02:56]}  O-O {[%clk 0:02:55]} 10. Ng5 {[%clk 0:02:50]}  h6 {[%clk 0:02:38]} 11. Bf3 {[%clk 0:02:48]}  Qd7 {[%clk 0:02:36]} 12. Ne4 {[%clk 0:02:46]}  b6 {[%clk 0:02:37]} 13. Ned6 {[%clk 0:02:42]}  Ba6 {[%clk 0:02:29]} 14. Re1 {[%clk 0:02:34]}  Rad8 {[%clk 0:02:27]} 15. Nb5 {[%clk 0:02:22]}  f6 {[%clk 0:02:11]} 16. Bg4 {[%clk 0:02:20]}  f5 {[%clk 0:02:06]} 17. Bf3 {[%clk 0:02:20]}  Nd5 {[%clk 0:01:52]} 18. Bd2 {[%clk 0:02:13]}  Nf4 {[%clk 0:01:26]} 19. Bxf4 {[%clk 0:01:49]}  exf4 {[%clk 0:01:26]} 20. Bxc6 {[%clk 0:01:36]}  Qxc6 {[%clk 0:01:24]} 21. Nxa7 {[%clk 0:01:36]}  Qf6 {[%clk 0:01:05]} 22. Nb5 {[%clk 0:01:35]}  Bb7 {[%clk 0:01:03]} 23. f3 {[%clk 0:01:27]}  g5 {[%clk 0:01:02]} 24. Qe2 {[%clk 0:01:24]}  Bd5 {[%clk 0:00:49]} 25. Nba3 {[%clk 0:01:19]}  g4 {[%clk 0:00:48]} 26. Qf2 {[%clk 0:01:15]}  Qg5 {[%clk 0:00:42]} 27. Kf1 {[%clk 0:01:13]}  Bd4 {[%clk 0:00:40]} 28. Qd2 {[%clk 0:00:52]}  gxf3 {[%clk 0:00:37]} 29. g3 {[%clk 0:00:50]}  Qg4 {[%clk 0:00:29]} 0-1


[Site "https://www.chess.com"]

[Event "Titled Tuesday Blitz March 14 Late 2023"]
[White "Kielinkei"]
[Black "Weetik, Vjacheslav"]
[BlackFideId "4153472"]
[WhiteElo "2427"]
[BlackElo "2469"]
[Result "0-1"]
[Round "08"]
[TimeControl "180+2"]
[Date "2023.03.14"]
[WhiteClock "0:00:19"]
[BlackClock "0:00:08"]

1. e4 {[%clk 0:03:00]}  c6 {[%clk 0:02:58]} 2. Nf3 {[%clk 0:02:57]}  d5 {[%clk 0:02:59]} 3. Nc3 {[%clk 0:02:57]}  dxe4 {[%clk 0:02:59]} 4. Nxe4 {[%clk 0:02:58]}  Nf6 {[%clk 0:02:59]} 5. Nxf6+ {[%clk 0:02:55]}  exf6 {[%clk 0:02:59]} 6. d4 {[%clk 0:02:51]}  Bd6 {[%clk 0:02:59]} 7. Be3 {[%clk 0:02:42]}  O-O {[%clk 0:02:59]} 8. Bc4 {[%clk 0:02:41]}  Re8 {[%clk 0:02:55]} 9. Qd2 {[%clk 0:02:33]}  Nd7 {[%clk 0:02:55]} 10. O-O-O {[%clk 0:02:31]}  b5 {[%clk 0:02:52]} 11. Bb3 {[%clk 0:02:28]}  a5 {[%clk 0:02:49]} 12. a4 {[%clk 0:02:22]}  Nb6 {[%clk 0:02:31]} 13. axb5 {[%clk 0:02:13]}  a4 {[%clk 0:02:19]} 14. Ba2 {[%clk 0:01:46]}  a3 {[%clk 0:02:13]} 15. c4 {[%clk 0:01:43]}  Bf5 {[%clk 0:01:39]} 16. b4 {[%clk 0:01:32]}  cxb5 {[%clk 0:01:14]} 17. c5 {[%clk 0:01:31]}  Nc4 {[%clk 0:01:11]} 18. Bxc4 {[%clk 0:01:20]}  bxc4 {[%clk 0:01:11]} 19. cxd6 {[%clk 0:01:18]}  Qxd6 {[%clk 0:00:59]} 20. Qc3 {[%clk 0:01:13]}  Reb8 {[%clk 0:00:48]} 21. Kd2 {[%clk 0:00:58]}  Rxb4 {[%clk 0:00:47]} 22. Ra1 {[%clk 0:00:50]}  a2 {[%clk 0:00:40]} 23. Rhc1 {[%clk 0:00:47]}  Bd3 {[%clk 0:00:23]} 24. Ke1 {[%clk 0:00:40]}  g5 {[%clk 0:00:15]} 25. h3 {[%clk 0:00:38]}  h5 {[%clk 0:00:14]} 26. g3 {[%clk 0:00:33]}  Rb3 {[%clk 0:00:11]} 27. Qd2 {[%clk 0:00:31]}  Qd5 {[%clk 0:00:11]} 28. Qd1 {[%clk 0:00:26]}  Rb2 {[%clk 0:00:10]} 29. Bd2 {[%clk 0:00:19]}  g4 {[%clk 0:00:08]} 0-1


[Site "https://www.chess.com"]

[Event "Titled Tuesday Blitz March 14 Late 2023"]
[White "Pino Perez, Lazaro"]
[Black "Mendez Fortes, Eduardo Jesus"]
[WhiteFideId "3517055"]
[BlackFideId "3502376"]
[WhiteElo "2170"]
[BlackElo "2307"]
[Result "1-0"]
[Round "08"]
[TimeControl "180+2"]
[Date "2023.03.14"]
[WhiteClock "0:00:10"]
[BlackClock "0:00:51"]

1. d4 {[%clk 0:03:00]}  Nf6 {[%clk 0:02:58]} 2. Bf4 {[%clk 0:03:00]}  d5 {[%clk 0:02:57]} 3. e3 {[%clk 0:03:00]}  c5 {[%clk 0:02:58]} 4. Nf3 {[%clk 0:03:00]}  Nc6 {[%clk 0:02:59]} 5. Nbd2 {[%clk 0:03:00]}  cxd4 {[%clk 0:02:58]} 6. exd4 {[%clk 0:03:00]}  Bf5 {[%clk 0:02:59]} 7. c3 {[%clk 0:02:58]}  Qb6 {[%clk 0:02:58]} 8. Qb3 {[%clk 0:02:37]}  Qxb3 {[%clk 0:02:57]} 9. axb3 {[%clk 0:02:38]}  e6 {[%clk 0:02:55]} 10. b4 {[%clk 0:02:35]}  Ne4 {[%clk 0:02:52]} 11. b5 {[%clk 0:02:31]}  Nd8 {[%clk 0:02:52]} 12. Nxe4 {[%clk 0:02:19]}  Bxe4 {[%clk 0:02:50]} 13. Nd2 {[%clk 0:02:20]}  Bg6 {[%clk 0:02:50]} 14. Be2 {[%clk 0:02:13]}  Be7 {[%clk 0:02:50]} 15. O-O {[%clk 0:02:09]}  O-O {[%clk 0:02:50]} 16. Ra5 {[%clk 0:02:09]}  a6 {[%clk 0:02:37]} 17. Rfa1 {[%clk 0:02:05]}  h6 {[%clk 0:02:19]} 18. bxa6 {[%clk 0:01:52]}  bxa6 {[%clk 0:02:19]} 19. Rxa6 {[%clk 0:01:48]}  Rxa6 {[%clk 0:02:18]} 20. Rxa6 {[%clk 0:01:49]}  Bc2 {[%clk 0:02:10]} 21. Rb6 {[%clk 0:01:39]}  f6 {[%clk 0:02:08]} 22. b4 {[%clk 0:01:35]}  Kf7 {[%clk 0:02:06]} 23. Bg3 {[%clk 0:01:26]}  Rh8 {[%clk 0:01:52]} 24. h4 {[%clk 0:01:24]}  g5 {[%clk 0:01:51]} 25. Nf1 {[%clk 0:01:14]}  f5 {[%clk 0:01:43]} 26. Be5 {[%clk 0:01:08]}  Rg8 {[%clk 0:01:42]} 27. Bh5+ {[%clk 0:01:04]}  Kf8 {[%clk 0:01:42]} 28. Ne3 {[%clk 0:00:56]}  Be4 {[%clk 0:01:37]} 29. Rb8 {[%clk 0:00:45]}  gxh4 {[%clk 0:01:34]} 30. Bd6 {[%clk 0:00:44]}  Bxd6 {[%clk 0:01:07]} 31. Rxd8+ {[%clk 0:00:43]}  Kg7 {[%clk 0:01:07]} 32. Rxd6 {[%clk 0:00:42]}  Kf6 {[%clk 0:01:07]} 33. Kh2 {[%clk 0:00:37]}  Rc8 {[%clk 0:01:03]} 34. Rd7 {[%clk 0:00:28]}  Rxc3 {[%clk 0:01:00]} 35. f4 {[%clk 0:00:23]}  e5 {[%clk 0:00:58]} 36. dxe5+ {[%clk 0:00:19]}  Ke6 {[%clk 0:00:59]} 37. Rd6+ {[%clk 0:00:19]}  Ke7 {[%clk 0:00:58]} 38. Nxd5+ {[%clk 0:00:19]}  Bxd5 {[%clk 0:00:58]} 39. Rxd5 {[%clk 0:00:20]}  Rc4 {[%clk 0:00:59]} 40. Rb5 {[%clk 0:00:09]}  Rxf4 {[%clk 0:00:58]} 41. Rb6 {[%clk 0:00:08]}  Re4 {[%clk 0:00:57]} 42. e6 {[%clk 0:00:08]}  f4 {[%clk 0:00:54]} 43. Bf3 {[%clk 0:00:08]}  Re3 {[%clk 0:00:52]} 44. Kh3 {[%clk 0:00:08]}  Kf6 {[%clk 0:00:49]} 45. Kxh4 {[%clk 0:00:09]}  Kf5 {[%clk 0:00:48]} 46. Kh3 {[%clk 0:00:03]}  Re1 {[%clk 0:00:47]} 47. Kh2 {[%clk 0:00:03]}  Re3 {[%clk 0:00:45]} 48. b5 {[%clk 0:00:03]}  h5 {[%clk 0:00:45]} 49. Rb8 {[%clk 0:00:03]}  Kxe6 {[%clk 0:00:44]} 50. Re8+ {[%clk 0:00:03]}  Kd7 {[%clk 0:00:43]} 51. Rxe3 {[%clk 0:00:03]}  fxe3 {[%clk 0:00:42]} 52. Bxh5 {[%clk 0:00:04]}  Kc7 {[%clk 0:00:43]} 53. Be2 {[%clk 0:00:05]}  Kb6 {[%clk 0:00:43]} 54. Kg3 {[%clk 0:00:06]}  Kc5 {[%clk 0:00:43]} 55. Kf3 {[%clk 0:00:06]}  Kd4 {[%clk 0:00:44]} 56. g4 {[%clk 0:00:06]}  Kc3 {[%clk 0:00:45]} 57. Kxe3 {[%clk 0:00:06]}  Kc2 {[%clk 0:00:45]} 58. g5 {[%clk 0:00:07]}  Kc1 {[%clk 0:00:46]} 59. g6 {[%clk 0:00:08]}  Kb2 {[%clk 0:00:47]} 60. g7 {[%clk 0:00:08]}  Kc1 {[%clk 0:00:48]} 61. g8=Q {[%clk 0:00:09]}  Kb2 {[%clk 0:00:49]} 62. Qc4 {[%clk 0:00:09]}  Ka1 {[%clk 0:00:49]} 63. Qd3 {[%clk 0:00:09]}  Kb2 {[%clk 0:00:50]} 64. Qd2+ {[%clk 0:00:09]}  Ka1 {[%clk 0:00:49]} 65. Kd3 {[%clk 0:00:09]}  Kb1 {[%clk 0:00:50]} 66. Kc3 {[%clk 0:00:09]}  Ka1 {[%clk 0:00:51]} 67. Qb2# {[%clk 0:00:10]} 1-0


[Site "https://www.chess.com"]

[Event "Titled Tuesday Blitz March 14 Late 2023"]
[White "Postma, Dinant"]
[Black "Hoffmann, Asa"]
[WhiteFideId "1018612"]
[BlackFideId "2001470"]
[WhiteElo "2520"]
[BlackElo "2117"]
[Result "1-0"]
[Round "08"]
[TimeControl "180+2"]
[Date "2023.03.14"]
[WhiteClock "0:00:48"]
[BlackClock "0:01:40"]

1. d4 {[%clk 0:03:00]}  Nf6 {[%clk 0:02:53]} 2. Bg5 {[%clk 0:02:58]}  e6 {[%clk 0:02:51]} 3. e4 {[%clk 0:02:57]}  d6 {[%clk 0:02:50]} 4. Nc3 {[%clk 0:02:54]}  Be7 {[%clk 0:02:50]} 5. Nf3 {[%clk 0:02:53]}  c6 {[%clk 0:02:50]} 6. Bd3 {[%clk 0:02:45]}  d5 {[%clk 0:02:49]} 7. e5 {[%clk 0:02:43]}  Nfd7 {[%clk 0:02:49]} 8. Bxe7 {[%clk 0:02:43]}  Qxe7 {[%clk 0:02:49]} 9. Ne2 {[%clk 0:02:42]}  c5 {[%clk 0:02:49]} 10. c3 {[%clk 0:02:42]}  Nc6 {[%clk 0:02:48]} 11. O-O {[%clk 0:02:36]}  O-O {[%clk 0:02:48]} 12. Rc1 {[%clk 0:02:16]}  f6 {[%clk 0:02:47]} 13. exf6 {[%clk 0:02:12]}  Qxf6 {[%clk 0:02:46]} 14. Bb1 {[%clk 0:01:55]}  b6 {[%clk 0:02:42]} 15. Ng3 {[%clk 0:01:53]}  g6 {[%clk 0:02:40]} 16. Re1 {[%clk 0:01:42]}  a5 {[%clk 0:02:34]} 17. Qd2 {[%clk 0:01:40]}  Ba6 {[%clk 0:02:33]} 18. h4 {[%clk 0:01:37]}  Rae8 {[%clk 0:02:32]} 19. h5 {[%clk 0:01:30]}  Kg7 {[%clk 0:02:19]} 20. Ng5 {[%clk 0:01:22]}  Nd8 {[%clk 0:02:12]} 21. Nxh7 {[%clk 0:01:16]}  Kxh7 {[%clk 0:01:57]} 22. Bxg6+ {[%clk 0:01:14]}  Kg7 {[%clk 0:01:50]} 23. Bxe8 {[%clk 0:01:15]}  Rxe8 {[%clk 0:01:48]} 24. Re3 {[%clk 0:01:04]}  Qh6 {[%clk 0:01:46]} 25. Rce1 {[%clk 0:01:00]}  Rf8 {[%clk 0:01:45]} 26. Qc2 {[%clk 0:00:56]}  Nf6 {[%clk 0:01:41]} 27. Rxe6 {[%clk 0:00:51]}  Nxe6 {[%clk 0:01:40]} 28. Nf5+ {[%clk 0:00:48]} 1-0


[Site "https://www.chess.com"]

[Event "Titled Tuesday Blitz March 14 Late 2023"]
[White "Gallegos Diaz, Carlos Alberto"]
[Black "Kozin, Yuri"]
[WhiteFideId "3900886"]
[BlackFideId "4129920"]
[WhiteElo "2362"]
[BlackElo "2511"]
[Result "0-1"]
[Round "08"]
[TimeControl "180+2"]
[Date "2023.03.14"]
[WhiteClock "0:00:16"]
[BlackClock "0:00:11"]

1. e4 {[%clk 0:03:00]}  c5 {[%clk 0:02:56]} 2. Nf3 {[%clk 0:02:59]}  e6 {[%clk 0:02:55]} 3. d3 {[%clk 0:02:59]}  d5 {[%clk 0:02:54]} 4. Be2 {[%clk 0:02:58]}  Nf6 {[%clk 0:02:54]} 5. Nbd2 {[%clk 0:02:58]}  Nc6 {[%clk 0:02:55]} 6. O-O {[%clk 0:02:57]}  Be7 {[%clk 0:02:56]} 7. c3 {[%clk 0:02:57]}  O-O {[%clk 0:02:56]} 8. Re1 {[%clk 0:02:57]}  b5 {[%clk 0:02:56]} 9. exd5 {[%clk 0:02:57]}  Nxd5 {[%clk 0:02:55]} 10. d4 {[%clk 0:02:54]}  cxd4 {[%clk 0:02:54]} 11. cxd4 {[%clk 0:02:52]}  a6 {[%clk 0:02:52]} 12. Ne4 {[%clk 0:02:51]}  Nf6 {[%clk 0:02:41]} 13. Nc3 {[%clk 0:02:45]}  Nb4 {[%clk 0:02:39]} 14. a4 {[%clk 0:02:37]}  bxa4 {[%clk 0:02:32]} 15. Qxa4 {[%clk 0:02:24]}  Bb7 {[%clk 0:02:23]} 16. Bg5 {[%clk 0:02:19]}  Nbd5 {[%clk 0:02:11]} 17. Ne5 {[%clk 0:01:57]}  h6 {[%clk 0:01:52]} 18. Bd2 {[%clk 0:01:12]}  Bd6 {[%clk 0:01:37]} 19. Bf3 {[%clk 0:01:08]}  Nxc3 {[%clk 0:01:18]} 20. bxc3 {[%clk 0:00:54]}  Bxe5 {[%clk 0:01:10]} 21. Bxb7 {[%clk 0:00:52]}  Bxh2+ {[%clk 0:01:03]} 22. Kf1 {[%clk 0:00:30]}  Ra7 {[%clk 0:01:00]} 23. Bf3 {[%clk 0:00:26]}  Bd6 {[%clk 0:00:56]} 24. c4 {[%clk 0:00:23]}  Qc7 {[%clk 0:00:50]} 25. c5 {[%clk 0:00:20]}  Bf4 {[%clk 0:00:51]} 26. Ba5 {[%clk 0:00:19]}  Qc8 {[%clk 0:00:45]} 27. Bb6 {[%clk 0:00:19]}  Rd7 {[%clk 0:00:40]} 28. Qxa6 {[%clk 0:00:19]}  Rxd4 {[%clk 0:00:36]} 29. Qxc8 {[%clk 0:00:18]}  Rxc8 {[%clk 0:00:37]} 30. c6 {[%clk 0:00:18]}  Rd2 {[%clk 0:00:24]} 31. Reb1 {[%clk 0:00:17]}  Nd5 {[%clk 0:00:19]} 32. Bxd5 {[%clk 0:00:14]}  exd5 {[%clk 0:00:16]} 33. c7 {[%clk 0:00:14]}  Rc2 {[%clk 0:00:16]} 34. Ra7 {[%clk 0:00:13]}  Bxc7 {[%clk 0:00:15]} 35. Bxc7 {[%clk 0:00:10]}  R2xc7 {[%clk 0:00:15]} 36. Rxc7 {[%clk 0:00:10]}  Rxc7 {[%clk 0:00:16]} 37. Rb8+ {[%clk 0:00:10]}  Kh7 {[%clk 0:00:16]} 38. Rd8 {[%clk 0:00:11]}  Rc5 {[%clk 0:00:15]} 39. Ke2 {[%clk 0:00:12]}  f6 {[%clk 0:00:16]} 40. Kd3 {[%clk 0:00:13]}  Kg6 {[%clk 0:00:15]} 41. Rd6 {[%clk 0:00:12]}  Ra5 {[%clk 0:00:15]} 42. Rd7 {[%clk 0:00:13]}  h5 {[%clk 0:00:15]} 43. g3 {[%clk 0:00:13]}  Kh6 {[%clk 0:00:14]} 44. Ke3 {[%clk 0:00:14]}  g6 {[%clk 0:00:14]} 45. Rd6 {[%clk 0:00:14]}  Kg5 {[%clk 0:00:14]} 46. f4+ {[%clk 0:00:12]}  Kf5 {[%clk 0:00:13]} 47. Kf3 {[%clk 0:00:12]}  Ra3+ {[%clk 0:00:14]} 48. Kf2 {[%clk 0:00:12]}  Ra2+ {[%clk 0:00:13]} 49. Kf3 {[%clk 0:00:12]}  Ra5 {[%clk 0:00:13]} 50. Ke3 {[%clk 0:00:11]}  Rb5 {[%clk 0:00:13]} 51. Kf3 {[%clk 0:00:11]}  Rb3+ {[%clk 0:00:13]} 52. Kf2 {[%clk 0:00:11]}  Rd3 {[%clk 0:00:13]} 53. Ke2 {[%clk 0:00:11]}  Rxg3 {[%clk 0:00:12]} 54. Rxd5+ {[%clk 0:00:11]}  Kxf4 {[%clk 0:00:13]} 55. Rd6 {[%clk 0:00:12]}  Kg5 {[%clk 0:00:13]} 56. Kf2 {[%clk 0:00:13]}  Rg4 {[%clk 0:00:13]} 57. Kf3 {[%clk 0:00:13]}  f5 {[%clk 0:00:14]} 58. Rd8 {[%clk 0:00:12]}  h4 {[%clk 0:00:14]} 59. Rh8 {[%clk 0:00:13]}  Rg3+ {[%clk 0:00:12]} 60. Kf2 {[%clk 0:00:14]}  Kg4 {[%clk 0:00:13]} 61. Rg8 {[%clk 0:00:15]}  g5 {[%clk 0:00:13]} 62. Rh8 {[%clk 0:00:15]}  f4 {[%clk 0:00:13]} 63. Rh7 {[%clk 0:00:14]}  h3 {[%clk 0:00:14]} 64. Kf1 {[%clk 0:00:15]}  Rg2 {[%clk 0:00:14]} 65. Rg7 {[%clk 0:00:16]}  Kf3 {[%clk 0:00:11]} 66. Ke1 {[%clk 0:00:15]}  h2 {[%clk 0:00:10]} 67. Rh7 {[%clk 0:00:15]}  Rg1+ {[%clk 0:00:11]} 68. Kd2 {[%clk 0:00:16]}  h1=Q {[%clk 0:00:11]} 0-1


[Site "https://www.chess.com"]